[Event "Slovakian-ch Youth 2022"]
[Site "Lubovna"]
[Date "2022.05.23"]
[Round "4.13"]
[White "Sokolovsky, Jakub"]
[Black "Babjak, Samuel"]
[Result "1/2-1/2"]
[ECO "B33"]
[WhiteElo "1613"]
[BlackElo "1577"]
[Annotator "NA COMBH"]
[PlyCount "58"]
[EventDate "2022.05.22"]
[EventCountry "SVK"]
[SourceTitle "playchess.com"]
[Source "ChessBase"]
[SourceQuality "1"]
[TimeControl "40/5400+30:1800+30"]

1. e4 {[%emt 0:00:09]} c5 {[%emt 0:00:03]} 2. Nf3 {[%emt 0:00:08]} Nc6 {[%emt 0:00:04]} 3. d4 {[%emt 0:00:39]} cxd4 {[%emt 0:00:05]} 4. Nxd4 {[%emt 0:00:02]} Nf6 {[%emt 0:00:07]} 5. Nc3 {[%emt 0:00:17]} e5 {[%emt 0:00:07]} 6. Ndb5 {[%emt 0:00:44]} d6 {[%emt 0:00:11]} 7. Bg5 {[%emt 0:01:27]} a6 {[%emt 0:00:09]} 8. Na3 {[%emt 0:00:05]} b5 {[%emt 0:00:04]} 9. Nd5 {[%emt 0:01:22]} Be7 {[%emt 0:03:12]} 10. Bxf6 {[%emt 0:00:09]} Bxf6 {[%emt 0:00:05]} 11. c4 {[%emt 0:00:58]} b4 {[%emt 0:04:55]} 12. Nc2 {[%emt 0:00:11]} a5 {[%emt 0:00:34]} 13. Bd3 {[%emt 0:03:39]} Be6 {[%emt 0:06:18]} 14. Nce3 {[%emt 0:03:42]} Bg5 {[%emt 0:05:53]} 15. O-O {[%emt 0:03:07]} Ne7 {[%emt 0:09:07]} 16. a3 {[%emt 0:06:57]} Nxd5 {[%emt 0:02:51]} 17. Nxd5 {[%emt 0:12:34]} Bxd5 {[%emt 0:01:12]} 18. cxd5 {[%emt 0:02:33]} O-O {[%emt 0:05:35]} 19. Qa4 {[%emt 0:07:09]} bxa3 {[%emt 0:04:46]} 20. Rxa3 {[%emt 0:04:55]} Qc7 {[%emt 0:03:32]} 21. Rc3 {[%emt 0:07:31]} Qe7 {[%emt 0:06:39]} 22. Rc6 {[%emt 0:05:25]} Bd2 {[%emt 0:02:40]} 23. Qc4 {[%emt 0:02:58]} Bb4 {[%emt 0:04:33]} 24. Rc7 {[%emt 0:03:44]} Qd8 {[%emt 0:04:01]} 25. Qc6 {[%emt 0:09:18]} Rc8 {[%emt 0:03:27]} 26. Rxc8 {[%emt 0:02:38]} Qxc8 {[%emt 0:00:04]} 27. Rc1 {[%emt 0:00:40]} Bc5 {[%emt 0:03:03]} 28. Qxc8 {[%emt 0:08:24]} Rxc8 {[%emt 0:00:28]} 29. Bc4 {[%emt 0:00:52]} Rb8 {[%emt 0:00:50]} 1/2-1/2

[Event "Slovakian-ch Youth 2022"]
[Site "Lubovna"]
[Date "2022.05.23"]
[Round "4.13"]
[White "Ammer, Erik"]
[Black "Kurimsky, Kristian"]
[Result "1-0"]
[ECO "C50"]
[WhiteElo "1320"]
[BlackElo "1006"]
[Annotator "NA COMBH"]
[PlyCount "45"]
[EventDate "2022.05.22"]
[EventCountry "SVK"]
[SourceTitle "playchess.com"]
[Source "ChessBase"]
[SourceQuality "1"]
[TimeControl "40/5400+30:1800+30"]

1. e4 {[%emt 0:00:05]} e5 {[%emt 0:00:10]} 2. Nf3 {[%emt 0:00:03]} Nc6 {[%emt 0:00:12]} 3. Bc4 {[%emt 0:00:04]} Nf6 {[%emt 0:00:45]} 4. d3 {[%emt 0:00:16]} Bc5 {[%emt 0:01:28]} 5. Nc3 {[%emt 0:00:05]} d6 {[%emt 0:00:38]} 6. h3 {[%emt 0:00:33]} Na5 {[%emt 0:02:13]} 7. Bb3 {[%emt 0:00:25]} h6 {[%emt 0:03:15]} 8. Be3 {[%emt 0:00:45]} Bxe3 {[%emt 0:02:15]} 9. fxe3 {[%emt 0:00:06]} b6 {[%emt 0:02:39]} 10. d4 {[%emt 0:00:38]} exd4 {[%emt 0:02:20]} 11. exd4 {[%emt 0:00:33]} c5 {[%emt 0:00:39]} 12. d5 {[%emt 0:01:14]} c4 {[%emt 0:00:35]} 13. Ba4+ {[%emt 0:00:12]} Bd7 {[%emt 0:00:21]} 14. Nb5 {[%emt 0:00:54]} Nxe4 {[%emt 0:03:00]} 15. Qe2 {[%emt 0:00:17]} f5 {[%emt 0:00:34]} 16. Nxd6+ {[%emt 0:00:17]} Kf8 {[%emt 0:01:17]} 17. Bxd7 {[%emt 0:00:51]} Qxd7 {[%emt 0:00:25]} 18. Nxc4 {[%emt 0:00:05]} Qxd5 {[%emt 0:04:53]} 19. Ne3 {[%emt 0:01:39]} Qe6 {[%emt 0:03:13]} 20. Nd4 {[%emt 0:00:59]} Qe5 {[%emt 0:00:54]} 21. Ndxf5 {[%emt 0:00:53]} g6 {[%emt 0:00:52]} 22. O-O {[%emt 0:00:22]} gxf5 {[%emt 0:00:25]} 23. Rxf5+ {[%emt 0:00:11]} 1-0

[Event "Slovakian-ch Youth 2022"]
[Site "Lubovna"]
[Date "2022.05.23"]
[Round "4.14"]
[White "Valko, Michal"]
[Black "Chovanec, Adrian"]
[Result "1-0"]
[ECO "A03"]
[WhiteElo "1906"]
[BlackElo "1498"]
[Annotator "TA"]
[PlyCount "47"]
[EventDate "2022.05.22"]
[EventCountry "SVK"]
[SourceTitle "playchess.com"]
[Source "ChessBase"]
[SourceQuality "1"]
[TimeControl "40/5400+30:1800+30"]

{[%evp 9,47,-4,12,19,15,16,31,-34,-23,-28,6,-10,0,0,0,20,87,111,115,110,204,173,353,352,586,582,585,579,553,519,489,492,1051,1033,1550,1504,29988,2312,2116,1747]} 1. f4 {[%emt 0:00:31]} Nc6 {[%emt 0:00:51]} 2. Nf3 {[%emt 0:00:28]} d5 {[%emt 0:01:09]} 3. e3 {[%emt 0:00:58]} a6 {[%emt 0:00:45]} 4. b3 {[%emt 0:00:28]} Bf5 {[%emt 0:01:46]} 5. Bb2 {[%emt 0:00:46]} f6 {[%emt 0:02:09] [#]} 6. Be2 $146 {[%emt 0:02:15] A03: Bird's Opening with 1...d5.} ({Predecessor:} 6. d3 Bg4 7. Be2 e6 8. O-O Bc5 9. d4 Bb4 10. a3 Bd6 11. h3 Bh5 12. g4 {1-0 (54) Yurtoglu,O (1927)-Yalbirdak,A Ankara 2021}) 6... Qd7 {[%emt 0:03:57]} 7. O-O {[%emt 0:02:59]} O-O-O {[%emt 0:02:55]} 8. d3 {[%emt 0:09:32]} (8. a3 $14) 8... Kb8 $15 {[%emt 0:08:04]} 9. a3 {[%emt 0:01:46]} Bg4 {[%emt 0:05:18]} 10. d4 {[%emt 0:04:36]} Nh6 {[%emt 0:08:23]} 11. c4 {[%emt 0:01:28]} dxc4 {[%emt 0:09:33]} 12. bxc4 {[%emt 0:00:20][%cal Bb3c4,Bc4c5][%mdl 32]} e6 {[%emt 0:03:50] Inhibits d5.} (12... Nf5 $11 {keeps the balance.} 13. Bc1 e5 14. fxe5 fxe5) 13. Nbd2 $16 {[%emt 0:02:03]} Nf5 {[%emt 0:09:29]} 14. Qb3 {[%emt 0:02:12]} Kc8 {[%emt 0:07:59]} (14... Na5 $16 {keeps fighting.} 15. Qc3 Nc6) 15. Rab1 $18 {[%emt 0:05:17] [#] Black must now prevent Bc3.} Na7 $2 {[%emt 0:07:30]} (15... Na5 16. Qc3 Nc6) 16. c5 {[%emt 0:07:37]} Bxf3 $2 {[%emt 0:02:59]} (16... Qc6 {was necessary.} 17. h3 Bxf3 18. Bxf3 Qb5 19. Qxe6+ Qd7) 17. Bxf3 {[%emt 0:00:38][%csl Gf3][%cal Rb3b7]} c6 {[%emt 0:00:25]} 18. Nc4 {[%emt 0:00:35] aiming for Nb6+.} Kb8 {[%emt 0:08:22]} 19. Bc3 {[%emt 0:00:42]} Nb5 {[%emt 0:00:27]} 20. Kh1 {[%emt 0:01:41]} Nxc3 {[%emt 0:00:47]} (20... Nh4 $142 21. Be4 f5) 21. Qxc3 {[%emt 0:00:18]} Nxd4 {[%emt 0:02:00]} 22. exd4 {[%emt 0:02:50]} Qxd4 {[%emt 0:00:25] [#]} 23. Qb3 {[%emt 0:01:05]} (23. Bxc6 $142 $1 Qd7 24. Bxd7 Bxc5 25. Bxe6 Rc8 26. Qa5 Rhe8 27. Bxc8 Bb4 28. Rxb4) 23... Qd7 {[%emt 0:01:49]} 24. Rfd1 {[%emt 0:00:16] Weighted Error Value: White=0.13 (very precise) /Black=0.85} 1-0

[Event "Slovakian-ch Youth 2022"]
[Site "Lubovna"]
[Date "2022.05.23"]
[Round "4.14"]
[White "Otahal, Kristian"]
[Black "Tokarcik, Jan"]
[Result "1/2-1/2"]
[ECO "D02"]
[WhiteElo "1000"]
[BlackElo "1313"]
[Annotator "NA COMBH"]
[PlyCount "43"]
[EventDate "2022.05.22"]
[EventCountry "SVK"]
[SourceTitle "playchess.com"]
[Source "ChessBase"]
[SourceQuality "1"]
[TimeControl "40/5400+30:1800+30"]

1. d4 {[%emt 0:00:02]} d5 {[%emt 0:00:04]} 2. Nf3 {[%emt 0:00:04]} Nf6 {[%emt 0:00:09]} 3. Bf4 {[%emt 0:00:08]} Bf5 {[%emt 0:00:23]} 4. e3 {[%emt 0:00:11]} e6 {[%emt 0:00:16]} 5. c4 {[%emt 0:00:44]} Bb4+ {[%emt 0:00:29]} 6. Nc3 {[%emt 0:00:31]} c6 {[%emt 0:05:59]} 7. Qb3 {[%emt 0:02:49]} Bxc3+ {[%emt 0:00:59]} 8. bxc3 {[%emt 0:00:13]} b6 {[%emt 0:04:41]} 9. cxd5 {[%emt 0:01:41]} Nxd5 {[%emt 0:04:23]} 10. Bg3 {[%emt 0:01:35]} O-O {[%emt 0:07:47]} 11. c4 {[%emt 0:01:21]} Nf6 {[%emt 0:05:28]} 12. Be2 {[%emt 0:01:07]} Nbd7 {[%emt 0:01:34]} 13. O-O {[%emt 0:00:18]} Ne4 {[%emt 0:05:16]} 14. Bf4 {[%emt 0:05:45]} g5 {[%emt 0:05:26]} 15. Bg3 {[%emt 0:00:43]} g4 {[%emt 0:02:22]} 16. Ne5 {[%emt 0:04:42]} Nxe5 {[%emt 0:06:56]} 17. Bxe5 {[%emt 0:00:11]} Nd2 {[%emt 0:00:28]} 18. Qb2 {[%emt 0:04:53]} Nxf1 {[%emt 0:01:08]} 19. Rxf1 {[%emt 0:00:57]} f6 {[%emt 0:00:56]} 20. Bg3 {[%emt 0:01:17]} a6 {[%emt 0:09:19]} 21. a4 {[%emt 0:04:33]} h5 {[%emt 0:05:33]} 22. f3 {[%emt 0:14:32]} 1/2-1/2

[Event "Slovakian-ch Youth 2022"]
[Site "Lubovna"]
[Date "2022.05.23"]
[Round "4.15"]
[White "Compel, Daniel"]
[Black "Lovcican, Tomas"]
[Result "1-0"]
[ECO "E07"]
[WhiteElo "2106"]
[BlackElo "2024"]
[Annotator "TA"]
[PlyCount "49"]
[EventDate "2022.05.22"]
[EventCountry "SVK"]
[SourceTitle "playchess.com"]
[Source "ChessBase"]
[SourceQuality "1"]
[TimeControl "40/5400+30:1800+30"]

{[%evp 15,49,0,8,-16,31,14,106,104,114,123,138,129,134,118,133,91,95,82,131,136,113,85,302,295,452,445,425,395,552,577,904,900,1171,1160,1185,631]} 1. d4 {[%emt 0:00:05]} d5 {[%emt 0:00:10]} 2. c4 {[%emt 0:00:03]} e6 {[%emt 0:00:10]} 3. Nf3 {[%emt 0:00:10]} Nf6 {[%emt 0:00:18]} 4. g3 {[%emt 0:00:07]} Be7 {[%emt 0:02:36]} 5. Bg2 {[%emt 0:00:11]} O-O {[%emt 0:00:24]} 6. O-O {[%emt 0:00:03]} Nbd7 {[%emt 0:02:03]} 7. Nc3 {[%emt 0:00:16]} c6 {[%emt 0:16:48]} 8. Qc2 {[%emt 0:00:11]} dxc4 {[%emt 0:00:32]} 9. a4 {[%emt 0:03:34] Prevents b5. E07: Closed Catalan: Main Line (5 Nf3 0-0 6 0-0 Nbd7).} Qc7 {[%emt 0:06:56] [#]} (9... a5 $11) 10. Rd1 $146 {[%emt 0:05:58]} (10. Bf4 $5 {[%cal Rf4c7]} Qd8 11. Rfd1 $11) ({Predecessor:} 10. e4 e5 11. Ne2 exd4 12. Nexd4 Ne5 13. Nxe5 Qxe5 14. Qxc4 Rd8 15. Ne2 Be6 16. Qc2 Nh5 17. Be3 Qa5 {½-½ (17) Milort,G (1948)-Rabus,B (2161) Leiden 2017}) 10... Bd6 {[%emt 0:02:33] [#]} (10... b6 $11) 11. Nd2 $1 $16 {[%emt 0:03:38] White is better.} e5 {[%emt 0:05:26]} 12. Nxc4 {[%emt 0:01:13]} exd4 {[%emt 0:00:15]} 13. Rxd4 {[%emt 0:00:13]} Be5 {[%emt 0:01:27]} 14. Nxe5 {[%emt 0:01:51] 0x0.00226af868b5dp-1022s more active pieces. The black rooks are badly placed.} Qxe5 {[%emt 0:00:03]} 15. Rd1 {[%emt 0:01:20]} Nb6 {[%emt 0:04:18]} 16. Bf4 {[%emt 0:01:04]} Qf5 {[%emt 0:00:15]} (16... Qh5 $142) 17. Qxf5 {[%emt 0:01:54]} Bxf5 {[%emt 0:00:07]} 18. a5 {[%emt 0:00:06][%cal Ba4a5,Ba5a6][%mdl 32]} Nbd7 {[%emt 0:11:50] [#] This costs Black the game.} (18... Nbd5 $16) 19. a6 $18 {[%emt 0:00:35]} b6 {[%emt 0:04:37]} (19... bxa6 {is a better defense.} 20. Bxc6 Rad8) 20. Bxc6 {[%emt 0:00:09]} Rac8 {[%emt 0:00:05]} 21. Bb7 {[%emt 0:00:54] A strong pair of Bishops.} Rc4 {[%emt 0:01:49]} 22. Nb5 {[%emt 0:00:56][%cal Bc3b5,Bb5a7,Ba7c8,Bc8e7][%mdl 32] White is clearly winning.} Rb4 {[%emt 0:02:35]} 23. Nxa7 {[%emt 0:00:17]} Rxb2 {[%emt 0:00:02]} 24. Nc8 {[%emt 0:00:49]} Be4 {[%emt 0:01:13]} 25. Ne7+ {[%emt 0:00:33] Weighted Error Value: White=0.08 (flawless) /Black=0.71} 1-0

[Event "Slovakian-ch Youth 2022"]
[Site "Lubovna"]
[Date "2022.05.23"]
[Round "4.15"]
[White "Valchev, Martin V"]
[Black "Kakus, Oliver"]
[Result "1-0"]
[ECO "C49"]
[WhiteElo "1193"]
[BlackElo "1000"]
[Annotator "NA COMBH"]
[PlyCount "57"]
[EventDate "2022.05.22"]
[EventCountry "SVK"]
[SourceTitle "playchess.com"]
[Source "ChessBase"]
[SourceQuality "1"]
[TimeControl "40/5400+30:1800+30"]

1. e4 {[%emt 0:00:30]} e5 {[%emt 0:00:30]} 2. Nc3 {[%emt 0:00:30]} Nc6 {[%emt 0:00:30]} 3. Nf3 {[%emt 0:00:30]} Nf6 {[%emt 0:00:08]} 4. Bb5 {[%emt 0:00:01]} Bb4 {[%emt 0:00:23]} 5. O-O {[%emt 0:00:11]} Bxc3 {[%emt 0:00:17]} 6. dxc3 {[%emt 0:00:05]} Ne7 {[%emt 0:00:22]} 7. Nxe5 {[%emt 0:00:15]} O-O {[%emt 0:00:41]} 8. Bg5 {[%emt 0:00:09]} Nxe4 {[%emt 0:00:27]} 9. Qg4 {[%emt 0:01:50]} Nxg5 {[%emt 0:00:23]} 10. Qxg5 {[%emt 0:01:10]} f6 {[%emt 0:00:42]} 11. Bc4+ {[%emt 0:00:13]} d5 {[%emt 0:00:11]} 12. Qh4 {[%emt 0:07:23]} fxe5 {[%emt 0:00:12]} 13. Rad1 {[%emt 0:02:19]} Qe8 {[%emt 0:00:22]} 14. Bxd5+ {[%emt 0:02:20]} Qf7 {[%emt 0:00:01]} 15. Bxf7+ {[%emt 0:00:00]} Rxf7 {[%emt 0:00:02]} 16. Rd8+ {[%emt 0:00:12]} Rf8 {[%emt 0:00:33]} 17. Rxf8+ {[%emt 0:00:07]} Kxf8 {[%emt 0:00:09]} 18. Qxh7 {[%emt 0:00:17]} Bf5 {[%emt 0:00:03]} 19. Qh8+ {[%emt 0:01:56]} Ng8 {[%emt 0:00:17]} 20. Qh5 {[%emt 0:00:26]} Nh6 {[%emt 0:00:16]} 21. g4 {[%emt 0:00:59]} Bxg4 {[%emt 0:00:17]} 22. Qxe5 {[%emt 0:00:20]} Re8 {[%emt 0:00:15]} 23. Qc5+ {[%emt 0:00:22]} Kf7 {[%emt 0:00:12]} 24. Qxc7+ {[%emt 0:00:23]} Re7 {[%emt 0:00:24]} 25. Qf4+ {[%emt 0:01:51]} Ke8 {[%emt 0:00:20]} 26. Kg2 {[%emt 0:00:19]} Rf7 {[%emt 0:00:22]} 27. Re1+ {[%emt 0:00:31]} Kf8 {[%emt 0:00:13]} 28. Qb8+ {[%emt 0:00:09]} Bc8 {[%emt 0:00:27]} 29. Qxc8# {[%emt 0:00:07]} 1-0

[Event "Slovakian-ch Youth 2022"]
[Site "Lubovna"]
[Date "2022.05.23"]
[Round "4.16"]
[White "Skreko, Igor"]
[Black "Paluska, Karol"]
[Result "1-0"]
[ECO "E36"]
[WhiteElo "2065"]
[BlackElo "2006"]
[Annotator "TA"]
[PlyCount "71"]
[EventDate "2022.05.22"]
[EventCountry "SVK"]
[SourceTitle "playchess.com"]
[Source "ChessBase"]
[SourceQuality "1"]
[TimeControl "40/5400+30:1800+30"]

{[%evp 12,71,17,0,19,0,68,56,54,38,44,33,45,6,3,8,27,18,86,4,11,0,44,40,33,35,29,-2,-4,0,8,8,7,0,11,0,6,10,24,9,16,3,4,3,238,238,352,352,351,351,347,347,343,343,343,339,379,361,387,381,581,554]} 1. d4 {[%emt 0:00:03]} Nf6 {[%emt 0:00:04]} 2. c4 {[%emt 0:00:05]} e6 {[%emt 0:00:03]} 3. Nc3 {[%emt 0:00:08]} Bb4 {[%emt 0:00:04]} 4. Qc2 {[%emt 0:00:06]} O-O {[%emt 0:01:06]} 5. a3 {[%emt 0:00:07]} Bxc3+ {[%emt 0:00:12]} 6. Qxc3 {[%emt 0:00:06]} d5 {[%emt 0:00:04] is recently more successful than 6...b6.} 7. Bg5 {[%emt 0:04:33][%cal Bc1g5,Bg5d8,Bd8e7][%mdl 32]} c5 {[%emt 0:11:23] E36: Nimzo-Indian: Classical: 4...d5 5 a3.} 8. cxd5 {[%emt 0:09:20] [#]} Nxd5 $146 {[%emt 0:04:18]} (8... cxd4 $11 9. Qxd4 Nc6 $1) ({Predecessor:} 8... cxd4 9. Qxd4 Nc6 10. Qd2 exd5 11. Nf3 h6 12. Bxf6 Qxf6 13. e3 d4 14. Nxd4 Rd8 15. Rd1 Nxd4 16. exd4 {0-1 (24) Lenic,L (2627)-Vidit,S (2727) Chess.com INT 2021}) 9. Bxd8 $14 {[%emt 0:01:01]} Nxc3 {[%emt 0:00:04] White is slightly better.} 10. Be7 {[%emt 0:00:43]} Re8 {[%emt 0:01:16]} 11. Bxc5 {[%emt 0:00:22]} Na4 {[%emt 0:00:59]} 12. Rb1 {[%emt 0:03:45]} Na6 {[%emt 0:04:39]} 13. Bb4 {[%emt 0:04:22]} Nxb4 {[%emt 0:03:15]} 14. axb4 {[%emt 0:00:01]} e5 {[%emt 0:00:17] [#]} (14... Bd7 $11 {remains equal.}) 15. dxe5 {[%emt 0:03:23]} (15. Nf3 $1 $16) 15... Bf5 {[%emt 0:03:04]} 16. Rc1 {[%emt 0:02:57]} Rxe5 {[%emt 0:07:42]} 17. Nf3 {[%emt 0:02:05]} Re4 {[%emt 0:00:29]} 18. b3 {[%emt 0:02:55]} Nb6 {[%emt 0:01:05]} 19. e3 {[%emt 0:00:51] Threatens to win with Bd3.} (19. b5 $5 {[%cal Re2e3]}) 19... Rxb4 {[%emt 0:00:40]} 20. Nd4 {[%emt 0:00:23]} Be4 {[%emt 0:03:53]} 21. f3 {[%emt 0:04:29]} Bd5 {[%emt 0:02:39]} 22. Rc3 {[%emt 0:01:01]} a5 {[%emt 0:06:36]} 23. Bd3 {[%emt 0:07:17]} a4 {[%emt 0:14:02]} 24. bxa4 {[%emt 0:04:27]} Nxa4 {[%emt 0:00:43]} 25. Ra3 {[%emt 0:00:41]} Rc8 {[%emt 0:02:49] White must now prevent ...Rc1+.} 26. O-O {[%emt 0:02:14]} g6 {[%emt 0:03:05]} 27. Nc2 {[%emt 0:11:17]} Rb2 {[%emt 0:01:19] This move loses the game for Black.} 28. Rxa4 $18 {[%emt 0:01:31]} Bb3 {[%emt 0:06:39]} (28... Rcxc2 {was called for.} 29. Bxc2 Rxc2) 29. Rb4 {[%emt 0:01:17] And now Nd4 would win.} Bxc2 {[%emt 0:01:53]} 30. Rxb2 {[%emt 0:00:14]} Bxd3 {[%emt 0:00:04][%mdl 4096] Endgame KRR-KRB} 31. Rd1 {[%emt 0:00:35]} ({Less strong is} 31. Rxb7 Bxf1 32. Kxf1 Rc1+ 33. Kf2 Rc2+ 34. Kg3 Re2 $16) 31... Ba6 {[%emt 0:00:09]} 32. Rd7 {[%emt 0:02:06]} Rc3 {[%emt 0:00:08]} 33. Kf2 {[%emt 0:01:23]} Rc1 {[%emt 0:01:04]} 34. Kg3 {[%emt 0:01:06]} Kg7 {[%emt 0:00:04]} 35. Rb4 {[%emt 0:00:56] aiming for Rf4.} Rc3 {[%emt 0:00:06]} (35... g5 $142 36. h4 gxh4+ 37. Rxh4 Rc6) 36. Rf4 {[%emt 0:00:54] Weighted Error Value: White=0.13 (very precise) /Black=0.36} 1-0

[Event "Slovakian-ch Youth 2022"]
[Site "Lubovna"]
[Date "2022.05.23"]
[Round "4.16"]
[White "Rybovic, Alex"]
[Black "Horvath, Simon"]
[Result "1/2-1/2"]
[ECO "C68"]
[WhiteElo "1000"]
[BlackElo "1343"]
[Annotator "NA COMBH"]
[PlyCount "82"]
[EventDate "2022.05.22"]
[EventCountry "SVK"]
[SourceTitle "playchess.com"]
[Source "ChessBase"]
[SourceQuality "1"]
[TimeControl "40/5400+30:1800+30"]

1. e4 {[%emt 0:00:02]} e5 {[%emt 0:00:09]} 2. Nf3 {[%emt 0:00:05]} Nc6 {[%emt 0:00:09]} 3. Bb5 {[%emt 0:00:26]} a6 {[%emt 0:00:57]} 4. Bxc6 {[%emt 0:00:08]} dxc6 {[%emt 0:00:15]} 5. Nxe5 {[%emt 0:00:20]} Qd4 {[%emt 0:01:13]} 6. Qh5 {[%emt 0:01:17]} Qxe4+ {[%emt 0:04:03]} 7. Kd1 {[%emt 0:01:14]} Nh6 {[%emt 0:04:54]} 8. d3 {[%emt 0:00:18]} Bg4+ {[%emt 0:06:05]} 9. f3 Qxf3+ {[%emt 0:03:24]} 10. gxf3 {[%emt 0:01:29]} Bxh5 {[%emt 0:00:17]} 11. Bxh6 {[%emt 0:00:27]} gxh6 {[%emt 0:00:27]} 12. Nd2 {[%emt 0:01:06]} Bd6 {[%emt 0:02:39]} 13. Ndc4 {[%emt 0:01:07]} Bxe5 {[%emt 0:01:38]} 14. Nxe5 {[%emt 0:00:25]} f6 {[%emt 0:02:17]} 15. Ng4 {[%emt 0:00:42]} Bxg4 {[%emt 0:00:30]} 16. Re1+ {[%emt 0:00:19]} Kf7 {[%emt 0:01:00]} 17. fxg4 {[%emt 0:00:05]} Rhe8 {[%emt 0:00:59]} 18. Rxe8 {[%emt 0:00:23]} Rxe8 {[%emt 0:00:08]} 19. Kd2 {[%emt 0:00:12]} Kg6 20. Rg1 {[%emt 0:00:42]} Re5 {[%emt 0:05:22]} 21. h4 h5 {[%emt 0:05:22]} 22. d4 {[%emt 0:00:56]} Rd5 {[%emt 0:01:42]} 23. c3 {[%emt 0:00:34]} hxg4 {[%emt 0:00:53]} 24. Rxg4+ {[%emt 0:00:13]} Kf5 {[%emt 0:01:23]} 25. Rg7 {[%emt 0:00:51]} h5 {[%emt 0:01:44]} 26. Rxc7 {[%emt 0:00:30]} Kg4 {[%emt 0:01:15]} 27. Rf7 {[%emt 0:00:44]} f5 {[%emt 0:01:01]} 28. Kd3 {[%emt 0:00:25]} f4 {[%emt 0:00:27]} 29. c4 {[%emt 0:00:32]} Rf5 {[%emt 0:01:19]} 30. Rxf5 {[%emt 0:00:26]} Kxf5 {[%emt 0:00:26]} 31. Ke2 {[%emt 0:00:10]} Kg4 {[%emt 0:00:18]} 32. d5 {[%emt 0:00:26]} Kxh4 {[%emt 0:01:51]} 33. d6 {[%emt 0:00:02]} Kg3 {[%emt 0:01:01]} 34. d7 {[%emt 0:00:11]} Kg2 {[%emt 0:01:28]} 35. d8=Q {[%emt 0:00:14]} f3+ {[%emt 0:01:18]} 36. Ke1 {[%emt 0:00:25]} f2+ {[%emt 0:00:35]} 37. Kd2 {[%emt 0:00:09]} f1=Q {[%emt 0:00:27]} 38. Qg5+ {[%emt 0:00:14]} Kf2 {[%emt 0:01:23]} 39. Qxh5 {[%emt 0:00:30]} Qe1+ {[%emt 0:01:46]} 40. Kc2 {[%emt 0:00:24]} Qe4+ {[%emt 0:01:22]} 41. Kc3 {[%emt 0:30:20]} Qe3+ {[%emt 0:31:43]} 1/2-1/2

[Event "Slovakian-ch Youth 2022"]
[Site "Lubovna"]
[Date "2022.05.23"]
[Round "4.17"]
[White "Rakovsky, Jakub"]
[Black "Sandor, Samuel"]
[Result "0-1"]
[ECO "C58"]
[WhiteElo "1888"]
[BlackElo "2054"]
[Annotator "TA"]
[PlyCount "62"]
[EventDate "2022.05.22"]
[EventCountry "SVK"]
[SourceTitle "playchess.com"]
[Source "ChessBase"]
[SourceQuality "1"]
[TimeControl "40/5400+30:1800+30"]

{[%evp 14,62,30,6,7,-27,-13,-37,-59,-47,-29,-39,0,-113,-90,-103,-114,-116,-112,-116,-84,-107,-92,-203,-174,-171,-145,-255,-237,-255,-258,-350,-343,-454,-424,-443,-473,-752,-691,-967,-950,-1000,-1007,-1781,-1768,-2153,-2022,-29989,-29990,-29992,-29993]} 1. e4 {[%emt 0:00:33]} e5 {[%emt 0:00:05]} 2. Nf3 {[%emt 0:00:47]} Nc6 {[%emt 0:00:06]} 3. Bc4 {[%emt 0:00:06]} Nf6 {[%emt 0:00:04]} 4. Ng5 {[%emt 0:00:49]} d5 {[%emt 0:00:05]} 5. exd5 {[%emt 0:00:08]} Na5 {[%emt 0:00:14]} 6. Bb5+ {[%emt 0:00:19]} c6 {[%emt 0:00:04]} 7. dxc6 {[%emt 0:00:13]} bxc6 {[%emt 0:00:04]} 8. Qf3 {[%emt 0:08:29] Recently 8.Bd3 got a lot of attention.} Be7 {[%emt 0:00:05] [#] C58: Two Knights: 4 Ng5 d5 5 exd5 Na5 sidelines.} 9. Bf1 $146 {[%emt 0:18:35]} ({Predecessor:} 9. Bd3 O-O 10. Nc3 h6 11. Nge4 Nd5 12. Ng3 Nb4 13. Nf5 Nxd3+ 14. Qxd3 Bc5 15. Qxd8 Rxd8 16. g4 {1-0 (36) Fedoseev,V (2687)-Predke,A (2690) chess24.com INT 2021}) 9... O-O {[%emt 0:00:59][%mdl 1024] Black has compensation.} 10. Ne4 {[%emt 0:03:13]} Nd5 {[%emt 0:05:34] Black is slightly better.} 11. d3 {[%emt 0:07:40]} f5 {[%emt 0:03:57]} 12. Nec3 {[%emt 0:01:08]} Bb7 {[%emt 0:06:42][%cal Od5f4]} 13. a3 {[%emt 0:03:21]} (13. Be2 $11) 13... c5 $36 {[%emt 0:02:19][%mdl 2048] Black is on the roll.} 14. Nxd5 {[%emt 0:00:47]} Bxd5 {[%emt 0:00:13]} ({Reject} 14... Qxd5 $6 15. Qxd5+ Bxd5 16. Bd2 $11) 15. Qd1 {[%emt 0:08:17][%cal Oh2h4]} Bb7 {[%emt 0:09:42] Black is much more active.} 16. Nc3 {[%emt 0:03:11]} Nc6 {[%emt 0:07:12]} 17. Be2 {[%emt 0:07:30]} Nd4 {[%emt 0:02:45]} 18. Rg1 {[%emt 0:01:07]} (18. O-O $17 {keeps fighting.}) 18... Qc7 {[%emt 0:06:17]} 19. Be3 {[%emt 0:03:19]} Rad8 {[%emt 0:08:00]} 20. g3 {[%emt 0:02:07]} (20. Qd2 $17 {was necessary.}) 20... Kh8 {[%emt 0:02:35]} 21. a4 {[%emt 0:04:34]} a6 {[%emt 0:11:19][%cal Oc5c4]} 22. b3 {[%emt 0:01:11]} Bf6 {[%emt 0:02:10]} ({Avoid the trap} 22... Qa5 $2 23. Bd2 Qb6 24. h4 $19) 23. Bxd4 {[%emt 0:00:54]} cxd4 {[%emt 0:03:24]} ({But not} 23... Rxd4 $2 24. Kf1 $19) 24. Nb1 {[%emt 0:00:26]} e4 {[%emt 0:00:43][%cal Be5e4,Be4e3][%mdl 32] [#] Threatens to win with ...f4.} 25. Nd2 {[%emt 0:02:09]} (25. Ra2 $142 e3 26. f3) 25... e3 $19 {[%emt 0:05:03] Strongly threatening ...Qc3.} 26. Nf3 {[%emt 0:01:16]} g5 {[%emt 0:02:57][%cal Bg7g5,Bg5g4][%mdl 32] ...g4 is the strong threat.} 27. Kf1 {[%emt 0:05:52]} g4 {[%emt 0:01:09] aiming for ...f4.} 28. Ne1 {[%emt 0:00:15]} exf2 {[%emt 0:02:31]} 29. Kxf2 {[%emt 0:00:05]} Bg5 {[%emt 0:02:57] A strong pair of Bishops.} 30. Ng2 {[%emt 0:00:36] Inhibits Be3+.} f4 {[%emt 0:01:17]} 31. gxf4 {[%emt 0:00:33]} Rxf4+ {[%emt 0:03:56] White got outplayed after the opening.  Weighted Error Value: White=1.09/Black=0.06 (flawless)} 0-1